bitfinex-derivatives/quotes_ETHF0:USTF0_20250507
["timestamp","ask_amount","ask_price","bid_price","bid_amount"]
[1746650058063,5.15942,1793.9,1793.8,7.45452986]
[1746650058668,6.88672,1793.9,1793.8,7.45452986]
[1746650061177,1.11478,1793.8,1793.7,1.694]
[1746650061374,2.80778,1793.8,1793.7,1.694]
[1746650065377,1.11478,1793.8,1793.7,2.80884]
[1746650065779,1.11478,1793.8,1793.7,3.65234]
[1746650066585,5.54486928,1794.1,1794.0,1.11465]
[1746650067179,7.39315904,1794.3,1794.2,1.11453]
[1746650067383,7.39315904,1794.3,1794.2,4.32233]
[1746650067874,9.25142797,1794.5,1794.4,1.11441]
[1746650068077,9.25142797,1794.5,1794.4,8.65621]
[1746650068274,6.98545629,1794.5,1794.4,13.65621]
[1746650068480,6.98545629,1794.5,1794.4,14.09755322]
[1746650068874,6.98545629,1794.5,1794.4,54.89755322]
[1746650069170,6.98545629,1794.5,1794.4,56.67845322]
[1746650070176,3.2078,1795.1,1794.7,1.11422]
[1746650070483,3.2078,1795.1,1795.0,1.11403]
[1746650070983,4.32177,1795.1,1795.0,1.11403]
[1746650071277,1.11403,1795.0,1794.9,1.11405]
[1746650071476,4.32182,1795.1,1794.9,2.75835]
[1746650071674,1.11403,1795.0,1794.9,1.6443]
[1746650071981,1.11422,1794.7,1794.6,3.901]
[1746650072179,1.11428,1794.6,1794.5,4.3221]
[1746650072381,1.704,1794.6,1794.5,5.9664]
[1746650072883,2.81828,1794.6,1794.5,5.9664]
[1746650076682,2.81828,1794.6,1794.5,1.6443]
[1746650076981,1.11434,1794.5,1794.4,40.8]
[1746650077282,2.80124,1794.5,1794.4,1.11441]
[1746650077887,1.11441,1794.4,1794.3,1.11444]
[1746650078078,1.11447,1794.3,1794.2,4.32227]
[1746650078276,1.11447,1794.3,1794.2,6.10427]
[1746650078579,1.11447,1794.3,1794.2,3.2078]
[1746650079685,1.11453,1794.2,1794.1,1.11459]
[1746650080083,2.73923,1794.3,1794.2,1.11453]
[1746650084993,1.6247,1794.3,1794.2,1.11453]
[1746650085198,2.73917,1794.3,1794.2,1.11453]
[1746650085393,4.0774,1794.5,1794.4,1.11441]
[1746650085692,1.11431,1794.6,1794.5,1.11434]
[1746650086090,2.88421,1794.6,1794.5,1.11434]
[1746650088699,7.16226,1794.9,1794.8,1.11413]
[1746650088700,1.11416,1794.9,1794.8,1.11413]
[1746650088889,2.73156,1794.9,1794.8,1.11413]
[1746650090196,1.6174,1794.9,1794.8,1.11413]
[1746650090397,2.81812,1795.1,1795.0,1.11403]
[1746650091793,4.48622,1795.1,1795.0,1.11403]
[1746650093495,3.3722,1795.1,1795.0,1.11403]
[1746650093698,4.48617,1795.1,1795.0,1.11403]
[1746650093998,3.3722,1795.1,1795.0,1.11403]
[1746650094400,4.48617,1795.1,1795.0,1.11403]
[1746650094993,1.11403,1795.0,1794.9,1.11405]
[1746650095288,2.81053,1795.0,1794.9,1.11405]
[1746650097103,1.6965,1795.0,1794.9,1.11405]
[1746650097306,1.11385,1795.4,1795.3,1.11382]
[1746650097507,3.62105,1795.4,1795.3,1.11382]
[1746650098203,2.5072,1795.4,1795.3,1.11382]
[1746650098402,3.62099,1795.4,1795.3,1.11382]
[1746650099100,0.8304,1795.4,1795.3,1.11382]
[1746650099298,3.2078,1795.6,1795.5,1.11372]
[1746650099504,4.32146,1795.6,1795.5,1.11372]
[1746650099694,5.94439,1795.6,1795.5,1.11372]
[1746650100508,3.2078,1795.6,1795.5,1.11372]
[1746650101006,5.14092,1795.9,1795.8,1.11354]
[1746650101307,3.2078,1795.9,1795.8,1.11354]
[1746650101809,10.34095923,1796.1,1795.7,7.72442]
[1746650102102,9.22756923,1796.1,1795.8,2.84622]
[1746650102309,1.11348,1795.9,1795.8,1.7327]
[1746650102606,1.11348,1795.9,1795.8,2.84624]
[1746650103110,2.83676,1796.0,1795.8,1.7327]
[1746650103409,2.83676,1796.0,1795.9,1.11348]
[1746650103610,1.11348,1795.9,1795.8,2.8462]
[1746650104710,2.81698,1795.9,1795.8,2.8462]
[1746650105206,1.7035,1795.9,1795.8,2.8462]
[1746650106212,2.81698,1795.9,1795.8,2.8462]
[1746650106713,2.81698,1795.9,1795.8,1.7327]
[1746650107010,2.81698,1795.9,1795.8,2.84624]
[1746650107715,2.81698,1795.9,1795.8,1.7327]
[1746650107913,1.7035,1795.9,1795.8,2.84624]
[1746650108106,1.11346,1796.0,1795.9,1.11348]
[1746650108306,1.11346,1796.0,1795.9,2.80838]
[1746650108613,1.11346,1796.0,1795.9,1.6949]
[1746650108914,4.32126,1796.0,1795.9,1.6949]
[1746650109207,4.32126,1796.0,1795.9,2.80838]
[1746650109414,1.11346,1796.0,1795.9,1.6949]
[1746650111714,1.11354,1795.8,1795.7,3.2078]
[1746650112014,1.1136,1795.7,1795.6,3.68292]
[1746650112317,1.11357,1795.8,1795.7,1.11358]
[1746650112511,2.72357,1795.8,1795.7,1.11358]
[1746650112711,2.7236,1795.8,1795.7,1.1136]
[1746650112912,1.1136,1795.7,1795.6,3.68293]
[1746650113919,1.1136,1795.7,1795.6,2.80643]
[1746650114216,2.72356,1795.8,1795.7,1.1136]
[1746650114412,2.72356,1795.8,1795.7,2.8445]
[1746650114620,2.72356,1795.8,1795.7,1.7309]
[1746650118020,1.11356,1795.8,1795.7,2.8445]
[1746650118921,1.11356,1795.8,1795.7,1.7309]
[1746650119319,2.86906,1795.8,1795.7,2.8445]
[1746650119521,2.86906,1795.8,1795.7,1.7309]
[1746650119716,3.2078,1796.0,1795.9,1.11348]
[1746650120019,4.32127,1796.0,1795.9,1.11348]
[1746650120224,1.11347,1796.0,1795.9,1.11348]
[1746650120428,1.11347,1796.0,1795.9,2.87428]
[1746650121109,1.11347,1796.0,1795.9,1.7608]
[1746650121110,2.87427,1796.0,1795.9,1.7608]
[1746650121824,2.87427,1796.0,1795.9,2.87428]
[1746650123425,2.87427,1796.0,1795.9,1.7608]
[1746650124023,1.1136,1795.7,1795.6,1.7186]
[1746650124222,1.11366,1795.6,1795.5,3.901]
[1746650124412,3.70086,1795.6,1795.5,3.901]
[1746650124826,1.11379,1795.4,1795.3,6.0976]
[1746650125025,1.11379,1795.4,1795.3,6.84241034]
[1746650125226,1.11379,1795.4,1795.3,6.0976]
[1746650125420,2.87599,1795.4,1795.3,6.0976]
[1746650125928,2.87599,1795.4,1795.3,4.379]
[1746650126121,1.11397,1795.1,1795.0,5.01502]
[1746650126321,1.11397,1795.1,1795.0,5.75877756]
[1746650126728,1.11397,1795.1,1795.0,7.39607756]
[1746650126927,2.80867,1795.1,1795.0,7.39607756]
[1746650128030,1.11403,1795.0,1794.9,1.11407]
[1746650128231,2.80873,1795.0,1794.9,1.857602]
[1746650128433,2.80873,1795.0,1794.9,0.743532]
[1746650128630,2.80873,1795.0,1794.9,1.857632]
[1746650129123,2.80873,1795.0,1794.9,1.1141]
[1746650129324,2.80873,1795.0,1794.9,1.85736562]
[1746650129521,2.80873,1795.0,1794.9,0.74326562]
[1746650130732,2.78538,1794.9,1794.5,3.901]
[1746650130930,1.11427,1794.7,1794.6,0.74278399]
[1746650131232,1.11428,1794.6,1794.5,1.7243]
[1746650131629,1.11428,1794.6,1794.5,2.83864]
[1746650133938,1.11428,1794.6,1794.5,1.7243]
[1746650134341,1.11434,1794.5,1794.4,9.52226]
[1746650134640,1.6953,1794.5,1794.2,1.11449]
[1746650134838,1.11443,1794.4,1794.3,1.11445]
[1746650135039,1.11447,1794.3,1794.2,47.9786]
[1746650135440,1.11447,1794.3,1794.2,1.7051]
[1746650135636,1.11447,1794.3,1794.2,2.81963]
[1746650135836,6.84184,1794.4,1794.3,1.11447]
[1746650136031,2.00674,1794.4,1794.2,2.81957]
[1746650136233,2.00676,1794.4,1794.3,1.11447]
[1746650136434,1.11447,1794.3,1794.2,2.81958]
[1746650137845,2.00676,1794.4,1794.3,1.11447]
[1746650138845,3.2078,1794.5,1794.4,1.11441]
[1746650139037,0.8057,1794.8,1794.7,1.11422]
[1746650139341,4.32187,1795.0,1794.9,1.1141]
[1746650140046,1.1141,1794.9,1794.8,2.74192]
[1746650140238,1.11419,1794.8,1794.7,1.11418]
[1746650141642,1.11418,1794.8,1794.7,1.11418]
[1746650141844,1.11414,1794.9,1794.8,1.11414]
[1746650143444,1.11416,1794.8,1794.7,1.11416]
[1746650146345,1.11414,1794.9,1794.8,1.11412]
[1746650146744,3.2078,1795.0,1794.8,1.11412]
[1746650147045,4.32187,1795.0,1794.9,1.1141]
[1746650148749,1.11414,1794.9,1794.8,1.1141]
[1746650149854,1.11423,1794.8,1794.7,1.11418]
[1746650150349,4.32203,1794.8,1794.7,1.11418]
[1746650151752,1.11423,1794.8,1794.7,1.11418]
[1746650153855,1.11414,1794.9,1794.8,1.11411]
[1746650154057,1.11416,1794.8,1794.7,2.85086]
[1746650154355,1.11416,1794.8,1794.7,3.59498031]
[1746650154855,2.88463,1794.9,1794.8,1.11416]
[1746650155056,2.88463,1794.9,1794.8,2.85086]
[1746650156858,6.09243,1794.9,1794.8,2.85086]
[1746650158662,3.2078,1794.9,1794.8,3.59604688]
[1746650159055,3.2078,1794.9,1794.8,4.42494688]
[1746650160366,3.2078,1794.9,1794.8,4.42537912]
[1746650160768,4.3219,1794.9,1794.8,4.42537912]
[1746650163169,4.3219,1794.9,1794.8,2.85086]
[1746650163358,6.1092,1794.9,1794.8,2.85086]
[1746650164069,1.11422,1794.8,1794.7,1.11419]
[1746650164368,2.90152,1794.8,1794.7,0.7446789]
[1746650164571,1.11422,1794.7,1794.6,2.87014]
[1746650164768,3.73312,1794.7,1794.6,3.61491953]
[1746650165262,3.73312,1794.7,1794.6,3.61470463]
[1746650165465,1.11428,1794.6,1794.5,4.353]
[1746650165663,2.90158,1794.6,1794.5,6.21221089]
[1746650165858,2.90158,1794.6,1794.5,1.85925112]
[1746650167169,2.90158,1794.6,1794.5,1.85936388]
[1746650168970,2.90158,1794.6,1794.5,1.86013542]
[1746650170772,2.90158,1794.6,1794.5,1.86139127]
[1746650172261,1.11428,1794.6,1794.5,1.86139127]
[1746650172468,1.11428,1794.6,1794.5,2.67259127]
[1746650172672,1.11428,1794.6,1794.5,2.67241488]
[1746650174577,1.11428,1794.6,1794.5,2.67230792]
[1746650176378,1.11428,1794.6,1794.5,2.65827397]
[1746650177180,5.7195,1794.7,1794.6,1.11428]
[1746650177374,9.22756923,1794.8,1794.7,1.11422]
[1746650177572,9.22756923,1794.8,1794.7,7.57508505]
[1746650177768,9.22756923,1794.8,1794.7,9.29738505]
[1746650178181,9.22756923,1794.8,1794.7,9.73719717]
[1746650179182,7.93689923,1794.8,1794.7,9.73719717]
[1746650179381,6.61309923,1794.8,1794.7,9.73719717]
[1746650179583,5.27415923,1794.8,1794.7,9.73719717]
[1746650179887,10.85311578,1795.1,1795.0,1.11403]
[1746650180184,10.85311578,1795.1,1795.0,50.20958028]
[1746650180484,11.96708578,1795.1,1795.0,47.72991136]
[1746650180680,15.41548578,1795.1,1795.0,45.88213108]
[1746650180877,1.11407,1795.0,1794.9,1.11408]
[1746650181078,2.88617,1795.0,1794.9,1.11408]
[1746650181484,1.1141,1794.9,1794.8,41.91412]
[1746650181673,1.6252,1794.9,1794.8,42.64765732]
[1746650181879,1.6252,1794.9,1794.8,1.84766132]
[1746650183689,1.6252,1794.9,1794.8,1.84727982]
[1746650185487,1.6252,1794.9,1794.8,3.6188163]
[1746650187591,1.6252,1794.9,1794.8,1.84741806]
[1746650187886,3.2078,1795.4,1794.9,2.78516]
[1746650188093,3.326,1795.3,1795.2,1.11385]
[1746650190291,4.43985,1795.3,1795.2,1.11385]
[1746650190685,3.326,1795.3,1795.2,1.11385]
[1746650190991,4.43985,1795.3,1795.2,1.11385]
[1746650191182,3.326,1795.3,1795.2,1.11385]
[1746650191792,4.43985,1795.3,1795.2,1.11385]
[1746650192391,3.326,1795.3,1795.2,1.11385]
[1746650192898,4.43985,1795.3,1795.2,1.11385]
[1746650193097,3.326,1795.3,1795.2,1.11385]
[1746650193792,4.43985,1795.3,1795.2,1.11385]
[1746650194192,3.326,1795.3,1795.2,1.11385]
[1746650195792,4.43985,1795.3,1795.2,1.11385]
[1746650203003,3.326,1795.3,1795.2,1.11385]
[1746650203297,4.32152,1795.6,1795.5,1.11367]
[1746650203492,7.81052,1795.6,1795.5,1.11367]
[1746650204197,1.11388,1795.3,1795.2,1.11382]
[1746650204390,4.32164,1795.4,1795.3,1.11385]
[1746650204791,6.05584,1795.4,1795.3,1.11385]
[1746650204986,4.942,1795.4,1795.3,1.11385]
[1746650205189,6.05579,1795.4,1795.3,3.57127935]
[1746650205400,6.05579,1795.4,1795.3,3.57151411]
[1746650205595,6.05579,1795.4,1795.3,1.84891411]
[1746650205794,6.05579,1795.4,1795.3,1.11385]
[1746650206300,6.05579,1795.4,1795.3,1.84862571]
[1746650207991,4.942,1795.4,1795.3,1.84862571]
[1746650208193,6.05579,1795.4,1795.3,1.84862571]
[1746650208901,1.7342,1795.4,1795.3,1.84862571]
[1746650209493,1.7342,1795.4,1795.3,3.61232571]
[1746650209701,2.84799,1795.4,1795.3,3.61232571]
[1746650210592,1.11375,1795.5,1795.4,1.11372]
[1746650210801,1.11375,1795.5,1795.4,2.87742]
[1746650210992,7.78439,1795.6,1795.5,1.11372]
[1746650211188,7.78439,1795.6,1795.5,2.87742]
[1746650215400,3.2078,1795.8,1795.5,2.49958926]
[1746650215698,4.59552,1795.9,1795.8,1.11354]
[1746650215900,1.11346,1796.0,1795.9,1.11348]
[1746650216099,1.11346,1796.0,1795.9,3.47027892]
[1746650216298,2.89556,1796.0,1795.9,3.47027892]
[1746650216598,2.89556,1796.0,1795.9,2.73418]
[1746650216799,2.89556,1796.0,1795.9,3.46995774]
[1746650216994,2.89556,1796.0,1795.9,3.46995751]
[1746650217297,2.89556,1796.0,1795.9,2.73418]
[1746650217800,6.02107,1796.1,1796.0,1.11341]
[1746650217995,6.02107,1796.1,1796.0,2.83131]
[1746650218198,12.23357872,1796.2,1796.1,1.11335]
[1746650218396,12.23357872,1796.2,1796.1,3.68605]
[1746650218705,12.23357872,1796.2,1796.1,4.42159103]
[1746650218904,12.23357872,1796.2,1796.1,4.42158463]
[1746650219105,1.11334,1796.2,1796.1,4.42158463]
[1746650219400,1.11334,1796.2,1796.1,3.68605]
[1746650225102,1.11354,1795.8,1795.7,5.01454]
[1746650225303,1.11385,1795.3,1795.2,7.5428]
[1746650225503,1.11385,1795.3,1795.2,7.85900111]
[1746650225805,1.11385,1795.3,1795.2,7.85907317]
[1746650226005,2.72673,1795.4,1795.3,1.11385]
[1746650228507,4.32156,1795.5,1795.4,1.11379]
[1746650228909,3.2078,1795.5,1795.4,1.11379]
[1746650229507,3.2078,1795.5,1795.4,2.75129]
[1746650231202,3.2078,1795.5,1795.4,3.48336507]
[1746650231409,4.51045,1795.7,1795.6,1.11366]
[1746650231607,1.11366,1795.6,1795.5,2.8558]
[1746650232108,2.84636,1795.6,1795.5,2.8558]
[1746650232307,1.7327,1795.6,1795.2,7.5428]
[1746650232509,1.7327,1795.6,1795.3,2.85591]
[1746650232510,1.11382,1795.4,1795.3,2.85591]
[1746650234211,1.11382,1795.4,1795.3,1.7421]
[1746650234411,3.2078,1795.4,1795.0,3.2078]
[1746650234611,1.11397,1795.1,1795.0,3.2078]
[1746650234913,1.11403,1795.0,1794.9,7.20149]
[1746650235111,2.88253,1795.0,1794.9,7.93356553]
[1746650235315,2.88253,1795.0,1794.9,7.20149]
[1746650235809,2.88253,1795.0,1794.9,7.93242726]
[1746650236110,2.88253,1795.0,1794.9,5.44909]
[1746650236915,2.88253,1795.0,1794.9,7.20139]
[1746650238515,2.88253,1795.0,1794.9,4.335]
[1746650238718,1.11422,1794.7,1794.6,2.86652]
[1746650239019,1.11422,1794.7,1794.6,1.84455699]
[1746650239223,1.11422,1794.7,1794.6,1.11422]
[1746650239422,2.77117,1794.8,1794.7,1.11422]
[1746650240021,1.657,1794.8,1794.5,48.0047]
[1746650240318,4.8648,1794.7,1794.3,0.8454]
[1746650240522,1.657,1794.6,1794.5,1.11434]
[1746650241025,2.77128,1794.6,1794.5,1.11434]
[1746650241222,1.657,1794.6,1794.5,1.11434]
[1746650241421,2.77128,1794.6,1794.5,1.11434]
[1746650243425,1.657,1794.6,1794.5,1.11434]
[1746650244725,2.77128,1794.6,1794.5,1.11434]
[1746650244923,1.657,1794.6,1794.5,1.11434]
[1746650246223,2.77128,1794.6,1794.5,1.11434]
[1746650247319,1.657,1794.6,1794.2,7.5438]
[1746650247524,1.11453,1794.2,1794.1,1.11455]
[1746650247727,4.32233,1794.2,1794.1,1.11455]
[1746650249325,1.1147,1794.0,1793.9,1.11468]
[1746650249629,1.11472,1793.9,1793.8,4.337]
[1746650249932,1.11478,1793.8,1793.7,1.1148]
[1746650251032,1.11484,1793.7,1793.6,2.87955]
[1746650251235,0.8705,1793.7,1793.6,2.8796]
[1746650251833,3.70734,1793.7,1793.6,2.8796]
[1746650252231,1.11493,1793.6,1793.5,1.11491]
[1746650252434,1.11493,1793.6,1793.5,2.74011]
[1746650252736,2.83693,1793.6,1793.5,2.74011]
[1746650252936,1.11497,1793.5,1793.4,4.338]
[1746650253235,2.7876,1793.4,1792.7,2.78852]
[1746650253435,3.2078,1793.2,1792.9,2.74052]
[1746650253629,1.722,1793.1,1793.0,1.11528]
[1746650253829,1.722,1793.1,1793.0,2.74048]
[1746650254031,2.83721,1793.1,1793.0,2.74048]
[1746650254831,2.83721,1793.1,1793.0,1.11528]
[1746650255032,3.68631,1793.1,1793.0,1.11528]
[1746650255637,2.5711,1793.1,1793.0,1.11528]
[1746650256136,3.68631,1793.1,1793.0,1.11528]
[1746650257833,2.5711,1793.1,1793.0,1.11528]
[1746650258229,1.722,1793.1,1793.0,1.11528]
[1746650259335,2.83721,1793.1,1793.0,1.11528]
[1746650261242,1.722,1793.1,1793.0,1.11528]
[1746650261742,4.0797,1793.2,1793.1,1.11521]
[1746650261932,4.031,1793.4,1793.0,5.99591]
[1746650262136,1.6496,1793.5,1793.4,1.11503]
[1746650262337,3.2078,1793.6,1793.5,1.11497]
[1746650262837,5.9723,1793.6,1793.5,1.11497]
[1746650263046,4.8574,1793.6,1793.5,1.11497]
[1746650263243,1.6496,1793.6,1793.5,1.11497]
[1746650263441,0.8859,1793.7,1793.4,4.8761]
[1746650263647,0.8859,1793.7,1793.6,1.1149]
[1746650264445,1.6175,1793.8,1793.6,1.11486]
[1746650264646,1.11486,1793.7,1793.6,1.11486]
[1746650264946,1.11489,1793.7,1793.6,1.11488]
[1746650265149,1.1149,1793.6,1793.5,1.11493]
[1746650265342,3.54989,1793.7,1793.6,1.1149]
[1746650265649,1.93239,1793.7,1793.6,1.1149]
[1746650268343,0.8175,1793.7,1793.6,1.1149]
[1746650268852,1.93234,1793.7,1793.6,1.1149]
[1746650270953,0.8175,1793.7,1793.6,1.1149]
[1746650271249,1.93234,1793.7,1793.6,1.1149]
[1746650271451,4.32264,1793.8,1793.7,1.11484]
[1746650271948,3.2078,1793.8,1793.7,1.11484]
[1746650272650,4.32258,1793.8,1793.7,1.7052]
[1746650272950,1.11488,1793.7,1793.6,1.11484]
[1746650277142,4.32263,1793.8,1793.7,1.11484]
[1746650279549,4.32263,1793.8,1793.7,1.84573181]
[1746650279848,3.2078,1794.0,1793.7,5.73089181]
[1746650280057,1.11469,1794.0,1793.9,1.11472]
[1746650280355,1.11465,1794.1,1794.0,1.1146]
[1746650280551,1.11465,1794.1,1794.0,2.7749]
[1746650281056,5.13548,1794.2,1794.1,1.11459]
[1746650281256,5.13548,1794.2,1794.1,2.77489]
[1746650281963,1.11472,1793.9,1793.8,41.91476]
[1746650282150,3.2078,1793.9,1793.6,1.11488]
[1746650282350,1.11484,1793.7,1793.6,1.11488]
[1746650282651,1.11484,1793.7,1793.6,3.48774154]
[1746650282846,1.11484,1793.7,1793.6,3.48757701]
[1746650283457,1.11484,1793.7,1793.6,3.48757794]
[1746650283645,1.11484,1793.7,1793.6,2.75648]
[1746650284860,1.7074,1793.8,1793.7,1.11484]
[1746650285050,5.96446,1793.9,1793.8,1.11478]
[1746650285458,5.96446,1793.9,1793.8,2.82528]
[1746650285657,0.841,1794.0,1793.8,2.44273093]
[1746650285853,4.32242,1794.1,1794.0,1.11465]
[1746650286352,1.11472,1793.9,1793.8,5.47974]
[1746650286546,1.11472,1793.9,1793.8,1.84705889]
[1746650286754,4.32242,1794.1,1794.0,1.11465]
[1746650287559,1.11465,1794.0,1793.9,2.82517]
[1746650287764,1.11465,1794.0,1793.9,3.55838148]
[1746650287960,1.11465,1794.0,1793.9,2.82517]
[1746650288962,1.11465,1794.0,1793.9,3.55858984]
[1746650289861,6.09854,1794.1,1794.0,1.11465]
[1746650291964,6.09854,1794.1,1794.0,1.84907832]
[1746650292263,6.09854,1794.1,1794.0,1.84922731]
[1746650292449,0.841,1794.3,1794.2,1.11453]
[1746650292656,1.95547,1794.3,1794.2,1.11453]
[1746650292855,1.95547,1794.3,1794.2,1.84894155]
[1746650293257,1.95547,1794.3,1794.2,3.46904155]
[1746650293458,0.841,1794.3,1794.2,3.46904155]
[1746650293765,1.11439,1794.5,1794.4,1.11441]
[1746650294568,1.6229,1794.5,1794.4,1.11441]
[1746650294766,2.73724,1794.5,1794.4,1.11441]
[1746650295061,5.99336,1794.7,1794.4,0.73436302]
[1746650295062,3.2078,1794.7,1794.4,0.73436302]
[1746650295363,3.2078,1794.7,1794.3,4.41024]
[1746650295364,1.11441,1794.4,1794.3,4.364]
[1746650295559,1.11453,1794.2,1794.1,7.10275]
[1746650295759,1.11453,1794.2,1794.1,7.83677994]
[1746650296163,1.7847,1794.3,1794.2,1.11453]
[1746650296464,2.73735,1794.4,1794.3,1.11447]
[1746650296666,2.73735,1794.4,1794.3,2.73867]
[1746650296966,2.73735,1794.4,1794.3,1.6242]
[1746650297168,1.11453,1794.2,1794.1,5.47855]
[1746650297365,2.74969,1794.3,1794.2,1.11453]
[1746650297565,2.74969,1794.3,1794.2,3.57040321]
[1746650298267,2.74969,1794.3,1794.2,2.83693]
[1746650298464,2.74969,1794.3,1794.2,1.7224]
[1746650298670,1.11453,1794.2,1794.1,5.47855]
[1746650298967,3.57583,1794.2,1794.1,6.2122723]
[1746650299268,2.4613,1794.2,1794.1,6.2122723]
[1746650299465,2.4613,1794.2,1794.1,7.93464153]
[1746650299666,3.57583,1794.2,1794.1,7.93464153]
[1746650301068,2.4613,1794.2,1794.1,7.93464153]
[1746650301269,4.0166,1794.5,1794.1,6.82001915]
[1746650301469,2.80694,1794.4,1794.3,1.11441]
[1746650301667,2.80694,1794.4,1794.3,2.84271]
[1746650302165,5.9656,1794.5,1794.4,1.11441]
[1746650302367,9.32971,1794.5,1794.2,1.11453]
[1746650302669,4.32227,1794.3,1794.2,1.11453]
[1746650302868,2.80696,1794.4,1794.3,1.11447]
[1746650303370,2.80696,1794.4,1794.3,2.82907]
[1746650305272,5.9656,1794.5,1794.4,1.11441]
[1746650305465,1.1144,1794.5,1794.4,2.82901]
[1746650305772,1.11433,1794.6,1794.5,1.11428]
[1746650305960,1.11433,1794.6,1794.5,2.82888]
[1746650306161,4.55257,1794.7,1794.6,1.11428]
[1746650306361,4.55257,1794.7,1794.6,2.89208]
[1746650307070,2.5443,1794.7,1794.6,2.89208]
[1746650307272,3.65852,1794.7,1794.6,3.62708672]
[1746650307473,0.8833,1794.7,1794.6,2.89208]
[1746650307668,0.8833,1794.7,1794.6,3.62685985]
[1746650307969,1.99752,1794.7,1794.6,3.62685985]
[1746650308171,1.99752,1794.7,1794.6,44.42685985]
[1746650308375,1.99752,1794.7,1794.6,43.69208]
[1746650308872,1.99752,1794.7,1794.6,40.8]
[1746650308873,5.20532,1794.7,1794.6,40.8]
[1746650309571,6.87672,1794.7,1794.4,4.363]
[1746650309871,1.11447,1794.3,1794.2,8.264]
[1746650310074,1.11447,1794.3,1794.2,46.27753]
[1746650310569,1.11447,1794.3,1794.2,4.363]
[1746650310774,1.11465,1794.0,1793.9,4.61706]
[1746650311071,1.11463,1794.1,1794.0,1.11459]
[1746650311268,4.9114,1794.3,1794.0,2.5102882]
[1746650311470,1.11436,1794.5,1794.4,1.11441]
[1746650312072,2.82686,1794.5,1794.4,2.89101]
[1746650313278,2.81788,1794.6,1794.5,1.11434]
[1746650313579,1.11451,1794.3,1794.2,1.11446]
[1746650313776,1.11464,1794.1,1794.0,5.4776]
[1746650313977,1.11464,1794.1,1794.0,7.88620421]
[1746650315481,2.88684,1794.1,1794.0,7.88620421]
[1746650315982,2.88684,1794.1,1794.0,7.8856145]
[1746650316384,2.80978,1794.2,1794.1,1.11459]
[1746650316586,4.58198,1794.2,1794.1,2.85109]
[1746650317283,4.58198,1794.2,1794.1,1.7365]
[1746650317480,1.11459,1794.1,1794.0,4.363]
[1746650317686,2.88679,1794.1,1794.0,6.21187606]
[1746650317887,2.88679,1794.1,1794.0,6.21187592]
[1746650318186,2.88679,1794.1,1794.0,5.09722592]
[1746650318382,1.11472,1793.9,1793.8,8.71352]
[1746650318583,1.11472,1793.9,1793.8,9.44790135]
[1746650318785,1.11472,1793.9,1793.8,11.10270135]
[1746650319288,2.731,1794.0,1793.9,1.11472]
[1746650319489,2.731,1794.0,1793.9,1.84910135]
[1746650319682,2.731,1794.0,1793.9,3.5036877]
[1746650319988,1.6163,1794.0,1793.9,3.5036877]
[1746650320189,2.73095,1794.0,1793.9,3.5036877]
[1746650321983,1.11464,1794.1,1794.0,1.11465]
[1746650322183,2.74754,1794.1,1794.0,2.81245]
[1746650324284,6.01758,1794.2,1794.1,1.11459]
[1746650324487,6.85515,1794.4,1794.3,1.11447]
[1746650324684,10.30009455,1794.5,1794.4,1.11441]
[1746650324890,10.30005455,1794.5,1794.4,1.84815623]
[1746650326594,10.30005455,1794.5,1794.4,3.54535623]
[1746650327294,10.30005455,1794.5,1794.4,3.54644859]
[1746650327794,9.18571455,1794.5,1794.4,3.54644859]
[1746650328794,3.69172,1794.6,1794.5,1.11434]
[1746650328994,3.69172,1794.6,1794.5,3.61217859]
[1746650329599,3.69172,1794.6,1794.5,2.49783859]
[1746650329897,3.69172,1794.6,1794.5,1.763]
[1746650330291,3.69172,1794.6,1794.5,2.87734]
[1746650330495,1.11441,1794.4,1794.3,1.11441]
[1746650330793,1.11441,1794.4,1794.3,1.84924893]
[1746650331994,1.11441,1794.4,1794.3,3.49324893]
[1746650334598,2.74947,1794.5,1794.4,1.11441]
[1746650334805,2.00283,1794.6,1794.5,1.11434]
[1746650334992,2.00283,1794.6,1794.5,1.84896818]
[1746650335197,6.87317,1794.7,1794.6,1.11428]
[1746650335398,3.66537,1794.7,1794.6,1.11428]
[1746650335699,1.11447,1794.3,1794.2,4.32232]
[1746650335898,1.11447,1794.3,1794.2,0.73508189]
[1746650336205,1.11436,1794.6,1794.5,1.1143]
[1746650336597,2.79226,1794.6,1794.5,1.1143]
[1746650337401,2.79226,1794.6,1794.5,2.8749]
[1746650337901,1.6779,1794.6,1794.5,2.8749]
[1746650338111,5.16608,1794.7,1794.6,1.11428]
[1746650338408,1.95828,1794.7,1794.6,1.7606]
[1746650338607,3.63618,1794.7,1794.6,2.87488]
[1746650342409,2.5219,1794.7,1794.6,2.87488]
[1746650342609,4.32191,1794.9,1794.8,1.11416]
[1746650342816,12.50911455,1795.0,1794.9,1.1141]
[1746650343007,10.29974455,1795.0,1794.9,2.7295]
[1746650343213,9.18571455,1795.0,1794.9,45.1727]
[1746650343411,10.29974455,1795.0,1794.9,45.1727]
[1746650343617,1.11403,1795.0,1794.9,45.1727]
[1746650343912,1.11403,1795.0,1794.9,43.5295]
[1746650344108,3.63153,1795.0,1794.9,43.5295]
[1746650345021,3.63153,1795.0,1794.9,41.9141]
[1746650345613,13.50753455,1795.1,1795.0,1.11403]
[1746650345814,13.50753455,1795.1,1795.0,2.80733]
[1746650346415,1.11403,1795.0,1794.9,41.91406]
[1746650346613,2.81883,1795.0,1794.9,43.60736]
[1746650347925,3.69403,1795.0,1794.9,43.60736]